[Event "SVK Extraliga 2019-20"]
[Site "Slovakia"]
[Date "2020.01.18"]
[Round "5.2"]
[White "Vetoshko, Volodymyr"]
[Black "Zilka, Stepan"]
[Result "1/2-1/2"]
[ECO "A06"]
[WhiteElo "2502"]
[BlackElo "2546"]
[Annotator "ChessBase"]
[PlyCount "192"]
[EventDate "2019.10.19"]
[EventType "team-tourn"]
[EventCountry "SVK"]
[SourceTitle "playchess.com"]
[Source "ChessBase"]
[SourceQuality "1"]
[WhiteTeam "Košice"]
[BlackTeam "Prakovce"]
[TimeControl "40/5400+30:1800+30"]

1. Nf3 {[%emt 0:00:00]} d5 {[%emt 0:00:00]} 2. g3 {[%emt 0:00:08]} c6 {[%emt 0:00:00]} 3. Bg2 {[%emt 0:00:23]} Nf6 {[%emt 0:00:06]} 4. O-O {[%emt 0:00:21]} Bf5 {[%emt 0:00:07]} 5. d3 {[%emt 0:05:10]} h6 {[%emt 0:03:33]} 6. c4 {[%emt 0:09:30]} dxc4 {[%emt 0:02:16]} 7. dxc4 {[%emt 0:01:18]} Qxd1 {[%emt 0:00:07]} 8. Rxd1 {[%emt 0:00:04]} Bc2 {[%emt 0:00:37]} 9. Re1 {[%emt 0:07:12]} Bh7 {[%emt 0:08:43]} 10. Nc3 {[%emt 0:03:13]} Nbd7 {[%emt 0:05:00]} 11. b4 {[%emt 0:04:18]} e6 {[%emt 0:05:39]} 12. a3 {[%emt 0:02:05]} a5 {[%emt 0:03:07]} 13. b5 {[%emt 0:21:05]} Bc5 {[%emt 0:00:04]} 14. Nd2 {[%emt 0:04:12]} Ng4 {[%emt 0:13:10]} 15. Nce4 {[%emt 0:15:18]} Be7 {[%emt 0:06:20]} 16. Bb2 {[%emt 0:01:53]} f5 {[%emt 0:04:46]} 17. Nc3 {[%emt 0:05:20]} Nge5 {[%emt 0:05:54]} 18. Na4 {[%emt 0:02:59]} O-O {[%emt 0:07:12]} 19. Rac1 {[%emt 0:02:01]} f4 {[%emt 0:02:18]} 20. Nf3 {[%emt 0:04:15]} Nxf3+ {[%emt 0:09:40]} 21. Bxf3 {[%emt 0:00:01]} fxg3 {[%emt 0:02:44]} 22. hxg3 {[%emt 0:00:01]} Nc5 {[%emt 0:00:17]} 23. Nxc5 {[%emt 0:03:55]} Bxc5 {[%emt 0:00:05]} 24. Rcd1 {[%emt 0:01:54]} Rad8 {[%emt 0:01:42]} 25. Rxd8 {[%emt 0:00:44]} Rxd8 {[%emt 0:00:05]} 26. bxc6 {[%emt 0:00:05]} bxc6 {[%emt 0:00:03]} 27. Bxc6 {[%emt 0:00:16]} Bc2 {[%emt 0:06:14]} 28. Rc1 {[%emt 0:03:24]} Bb3 {[%emt 0:00:12]} 29. Rc3 {[%emt 0:00:42]} a4 {[%emt 0:03:51]} 30. Rd3 {[%emt 0:00:08]} Rb8 {[%emt 0:00:25]} 31. Rd7 {[%emt 0:02:46]} Bf8 {[%emt 0:00:48]} 32. Bb5 {[%emt 0:00:44]} Rc8 {[%emt 0:02:59]} 33. Ra7 {[%emt 0:00:22]} Bxc4 {[%emt 0:00:34]} 34. Bxa4 {[%emt 0:00:09]} Rb8 {[%emt 0:00:35]} 35. Be5 {[%emt 0:00:59]} Rb1+ {[%emt 0:00:35]} 36. Kg2 {[%emt 0:00:07]} Bxe2 {[%emt 0:01:38]} 37. Bc6 {[%emt 0:00:24]} Bf1+ {[%emt 0:02:00]} 38. Kh2 {[%emt 0:00:22]} Re1 {[%emt 0:00:29]} 39. Bd4 {[%emt 0:00:40]} e5 {[%emt 0:02:44]} 40. Bd5+ {[%emt 0:00:58]} Kh7 {[%emt 0:00:53]} 41. Bc3 {[%emt 0:07:48]} Re2 {[%emt 0:01:27]} 42. Kg1 {[%emt 0:13:26]} Bh3 {[%emt 0:00:56]} 43. Rf7 {[%emt 0:04:19]} Bc5 {[%emt 0:03:51]} 44. Bc4 {[%emt 0:01:16]} Rc2 {[%emt 0:00:52]} 45. Bd3+ {[%emt 0:02:33]} Kg8 {[%emt 0:00:08]} 46. Rxg7+ {[%emt 0:01:17]} Kxg7 {[%emt 0:00:04]} 47. Bxe5+ {[%emt 0:00:23]} Kf7 {[%emt 0:01:49]} 48. Bxc2 {[%emt 0:00:01]} Bxa3 {[%emt 0:00:07]} 49. Bd4 {[%emt 0:01:02]} h5 {[%emt 0:01:31]} 50. Be4 {[%emt 0:00:07]} Be7 {[%emt 0:00:55]} 51. Kh2 {[%emt 0:01:09]} Be6 {[%emt 0:00:56]} 52. f3 {[%emt 0:01:35]} Bd6 {[%emt 0:00:26]} 53. Kg2 {[%emt 0:00:05]} Bc7 {[%emt 0:00:22]} 54. Kf2 {[%emt 0:00:11]} Bd6 {[%emt 0:00:05]} 55. Be3 {[%emt 0:00:35]} Kf6 {[%emt 0:01:42]} 56. Bc6 {[%emt 0:00:02]} Kf7 {[%emt 0:00:58]} 57. Bg5 {[%emt 0:00:10]} Bc5+ {[%emt 0:00:32]} 58. Kg2 {[%emt 0:00:36]} Bd4 {[%emt 0:00:58]} 59. Be4 {[%emt 0:00:17]} Kg7 {[%emt 0:00:24]} 60. Bd2 {[%emt 0:00:12]} Kf6 {[%emt 0:01:03]} 61. Ba5 {[%emt 0:00:22]} Bf5 {[%emt 0:05:05]} 62. Bd8+ {[%emt 0:00:21]} Kg6 {[%emt 0:00:06]} 63. Bc6 {[%emt 0:00:13]} Kg7 {[%emt 0:00:12]} 64. Be8 {[%emt 0:00:46]} Bg6 {[%emt 0:00:08]} 65. Bd7 {[%emt 0:00:01]} Bf6 {[%emt 0:04:45]} 66. Bxf6+ {[%emt 0:00:30]} Kxf6 {[%emt 0:00:04]} 67. Kh3 {[%emt 0:00:13]} Kg7 {[%emt 0:00:16]} 68. Kh4 {[%emt 0:00:30]} Kh6 {[%emt 0:00:04]} 69. Bb5 {[%emt 0:02:25]} Bf7 {[%emt 0:00:21]} 70. Be2 {[%emt 0:00:41]} Bg6 {[%emt 0:00:13]} 71. f4 {[%emt 0:00:24]} Be8 {[%emt 0:00:34]} 72. Bc4 {[%emt 0:00:55]} Bd7 {[%emt 0:00:24]} 73. Be2 {[%emt 0:00:14]} Be8 {[%emt 0:00:04]} 74. f5 {[%emt 0:00:19]} Bd7 {[%emt 0:02:13]} 75. Bd3 {[%emt 0:00:02]} Bc8 {[%emt 0:00:58]} 76. Be4 {[%emt 0:01:48]} Bd7 {[%emt 0:00:10]} 77. f6 {[%emt 0:00:06]} Be6 {[%emt 0:03:24]} 78. Bd3 {[%emt 0:00:09]} Bd5 {[%emt 0:01:20]} 79. Bf5 {[%emt 0:00:12]} Bc4 {[%emt 0:00:19]} 80. g4 {[%emt 0:00:44]} hxg4 {[%emt 0:00:06]} 81. Kxg4 {[%emt 0:00:01]} Bf7 {[%emt 0:00:21]} 82. Kf4 {[%emt 0:00:27]} Kh5 {[%emt 0:02:07]} 83. Bd3 {[%emt 0:00:57]} Kh6 {[%emt 0:00:07]} 84. Ke5 {[%emt 0:01:14]} Kg5 {[%emt 0:01:13]} 85. Bf5 {[%emt 0:00:08]} Bh5 {[%emt 0:02:49]} 86. Ke6 {[%emt 0:00:17]} Kf4 {[%emt 0:00:50]} 87. Bd3 {[%emt 0:00:40]} Bg4+ {[%emt 0:00:20]} 88. Ke7 {[%emt 0:01:05]} Bh5 {[%emt 0:00:04]} 89. Ke6 {[%emt 0:01:21]} Bg4+ {[%emt 0:01:40]} 90. Kf7 {[%emt 0:00:04]} Bf3 {[%emt 0:01:19]} 91. Bc4 {[%emt 0:01:02]} Bh5+ {[%emt 0:00:20]} 92. Ke7 {[%emt 0:00:46]} Ke5 {[%emt 0:00:09]} 93. Be2 {[%emt 0:00:13]} Bg6 {[%emt 0:00:08]} 94. Bg4 {[%emt 0:00:09]} Be8 {[%emt 0:00:06]} 95. Be6 {[%emt 0:00:13]} Bh5 {[%emt 0:00:05]} 96. Bf7 {[%emt 0:00:29]} Be2 {[%emt 0:00:06]} 1/2-1/2

[Event "SVK Extraliga 2019-20"]
[Site "Slovakia"]
[Date "2020.01.18"]
[Round "5.2"]
[White "Gazik, Viktor"]
[Black "Antal, Gergely"]
[Result "1-0"]
[ECO "B10"]
[WhiteElo "2501"]
[BlackElo "2563"]
[Annotator "ChessBase"]
[PlyCount "77"]
[EventDate "2019.10.19"]
[EventType "team-tourn"]
[EventCountry "SVK"]
[SourceTitle "playchess.com"]
[Source "ChessBase"]
[SourceQuality "1"]
[WhiteTeam "Podhajska"]
[BlackTeam "Slovan"]
[TimeControl "40/5400+30:1800+30"]

1. e4 {[%emt 0:00:00]} c6 {[%emt 0:00:00]} 2. Nc3 {[%emt 0:00:00]} d5 {[%emt 0:00:07]} 3. Nf3 {[%emt 0:00:00]} dxe4 {[%emt 0:00:50]} 4. Nxe4 {[%emt 0:00:00]} Nf6 {[%emt 0:00:03]} 5. Qe2 {[%emt 0:01:02]} Nxe4 {[%emt 0:00:08]} 6. Qxe4 {[%emt 0:00:08]} Nd7 {[%emt 0:02:24]} 7. Bc4 {[%emt 0:01:30]} Nf6 {[%emt 0:00:12]} 8. Ne5 {[%emt 0:12:41]} e6 {[%emt 0:01:20]} 9. Qe2 {[%emt 0:00:49]} b5 {[%emt 0:05:06]} 10. Nxc6 {[%emt 0:14:11]} Qc7 {[%emt 0:10:44]} 11. Bd3 {[%emt 0:02:43]} a6 {[%emt 0:01:21]} 12. Ne5 {[%emt 0:15:56]} Bd6 {[%emt 0:00:16]} 13. Ng4 {[%emt 0:00:51]} Nxg4 {[%emt 0:12:18]} 14. Qxg4 {[%emt 0:00:06]} f5 {[%emt 0:00:11]} 15. Qh5+ {[%emt 0:14:31]} g6 {[%emt 0:00:06]} 16. Qh3 {[%emt 0:01:14]} e5 {[%emt 0:07:05]} 17. a4 {[%emt 0:02:43]} e4 {[%emt 0:10:31]} 18. Be2 {[%emt 0:01:16]} b4 {[%emt 0:00:14]} 19. d3 {[%emt 0:14:18]} Qxc2 {[%emt 0:04:25]} 20. dxe4 {[%emt 0:06:04]} Qxe4 {[%emt 0:05:21]} 21. Bh6 {[%emt 0:06:18]} Kf7 {[%emt 0:08:58]} 22. Rd1 {[%emt 0:00:02]} f4 {[%emt 0:01:46]} 23. Qf3 {[%emt 0:01:20]} Qxf3 {[%emt 0:03:12]} 24. Bxf3 {[%emt 0:00:01]} Re8+ {[%emt 0:00:06]} 25. Kf1 {[%emt 0:00:03]} Be6 {[%emt 0:00:17]} 26. Bxa8 {[%emt 0:00:23]} Bc4+ {[%emt 0:00:05]} 27. Kg1 {[%emt 0:00:01]} Bb3 {[%emt 0:00:05]} 28. Bd5+ {[%emt 0:00:30]} Bxd5 {[%emt 0:00:03]} 29. h4 {[%emt 0:00:04]} Ke6 {[%emt 0:09:36]} 30. Kh2 {[%emt 0:00:55]} f3+ {[%emt 0:00:04]} 31. g3 {[%emt 0:00:04]} Bc4 {[%emt 0:00:05]} 32. Rd4 {[%emt 0:01:29]} Be2 {[%emt 0:00:04]} 33. Rc1 {[%emt 0:00:10]} Be5 {[%emt 0:04:26]} 34. Rc6+ {[%emt 0:00:26]} Kf7 {[%emt 0:00:15]} 35. Rxb4 {[%emt 0:00:22]} Re7 {[%emt 0:04:03]} 36. Bg5 {[%emt 0:03:23]} Rd7 {[%emt 0:00:46]} 37. Re4 {[%emt 0:02:09]} Bxb2 {[%emt 0:01:49]} 38. Rf4+ {[%emt 0:00:01]} Kg7 {[%emt 0:00:31]} 39. h5 {[%emt 0:00:02]} 1-0

[Event "SVK Extraliga 2019-20"]
[Site "Slovakia"]
[Date "2020.01.18"]
[Round "5.2"]
[White "Nemeth, Miklos"]
[Black "Bochnicka, Vladimir"]
[Result "1-0"]
[ECO "B33"]
[WhiteElo "2500"]
[BlackElo "2094"]
[Annotator "ChessBase"]
[PlyCount "125"]
[EventDate "2019.10.19"]
[EventType "team-tourn"]
[EventCountry "SVK"]
[SourceTitle "playchess.com"]
[Source "ChessBase"]
[SourceQuality "1"]
[WhiteTeam "Streda"]
[BlackTeam "Bratislava"]
[TimeControl "40/5400+30:1800+30"]

1. e4 {[%emt 0:00:00]} c5 {[%emt 0:00:00]} 2. Nf3 {[%emt 0:00:00]} Nc6 {[%emt 0:00:00]} 3. d4 {[%emt 0:00:00]} cxd4 {[%emt 0:00:00]} 4. Nxd4 {[%emt 0:00:02]} Nf6 {[%emt 0:00:00]} 5. Nc3 {[%emt 0:00:13]} e5 {[%emt 0:00:02]} 6. Ndb5 {[%emt 0:00:08]} d6 {[%emt 0:00:08]} 7. Bg5 {[%emt 0:00:07]} a6 {[%emt 0:00:07]} 8. Na3 {[%emt 0:00:04]} b5 {[%emt 0:00:08]} 9. Bxf6 {[%emt 0:00:07]} gxf6 {[%emt 0:00:05]} 10. Nd5 {[%emt 0:00:06]} f5 {[%emt 0:00:32]} 11. g3 {[%emt 0:00:06]} fxe4 {[%emt 0:00:11]} 12. Bg2 {[%emt 0:00:07]} Be6 {[%emt 0:01:18]} 13. Bxe4 {[%emt 0:00:11]} Bg7 {[%emt 0:00:19]} 14. Qh5 {[%emt 0:00:51]} Rc8 {[%emt 0:00:43]} 15. Rd1 {[%emt 0:01:14]} Ne7 {[%emt 0:01:17]} 16. Nxe7 {[%emt 0:00:16]} Qxe7 {[%emt 0:00:10]} 17. O-O {[%emt 0:03:59]} b4 {[%emt 0:00:27]} 18. Nb1 {[%emt 0:00:58]} h6 {[%emt 0:01:29]} 19. a3 {[%emt 0:08:04]} a5 {[%emt 0:00:41]} 20. axb4 {[%emt 0:05:44]} axb4 {[%emt 0:00:09]} 21. c3 {[%emt 0:00:09]} Qd7 {[%emt 0:02:11]} 22. Rd2 {[%emt 0:08:10]} O-O {[%emt 0:04:02]} 23. Bd5 {[%emt 0:11:31]} Rc5 {[%emt 0:10:07]} 24. Qd1 {[%emt 0:04:00]} Bg4 {[%emt 0:12:27]} 25. Qb3 {[%emt 0:07:15]} e4 {[%emt 0:14:26]} 26. Bxe4 {[%emt 0:05:51]} Re5 {[%emt 0:01:11]} 27. Qxb4 {[%emt 0:03:34]} Rfe8 {[%emt 0:00:50]} 28. Bc6 {[%emt 0:08:42]} Qxc6 {[%emt 0:03:24]} 29. Qxg4 {[%emt 0:00:12]} Re1 {[%emt 0:12:27]} 30. Rd1 {[%emt 0:00:19]} R1e2 {[%emt 0:00:10]} 31. Nd2 {[%emt 0:00:43]} Qb5 {[%emt 0:01:15]} 32. b3 {[%emt 0:08:02]} d5 {[%emt 0:05:21]} 33. Qf3 {[%emt 0:05:27]} Qc5 {[%emt 0:02:56]} 34. Nb1 {[%emt 0:01:08]} d4 {[%emt 0:01:37]} 35. b4 {[%emt 0:04:33]} Qb6 {[%emt 0:00:58]} 36. cxd4 {[%emt 0:00:07]} Qxb4 {[%emt 0:03:18]} 37. Nc3 {[%emt 0:00:46]} Rc2 {[%emt 0:03:01]} 38. Nd5 {[%emt 0:00:38]} Qd6 {[%emt 0:03:00]} 39. Ne3 {[%emt 0:00:19]} Rc3 {[%emt 0:00:51]} 40. Qg4 {[%emt 0:00:21]} Qg6 {[%emt 0:00:47]} 41. Qxg6 {[%emt 0:30:24]} fxg6 {[%emt 0:30:01]} 42. d5 {[%emt 0:00:21]} h5 {[%emt 0:01:11]} 43. d6 {[%emt 0:02:15]} Kf7 {[%emt 0:01:54]} 44. Rfe1 {[%emt 0:03:47]} Rd8 {[%emt 0:00:55]} 45. Nd5 {[%emt 0:01:46]} Rc6 {[%emt 0:01:57]} 46. Re7+ {[%emt 0:00:12]} Kf8 {[%emt 0:00:08]} 47. Nf4 {[%emt 0:03:03]} Rcxd6 {[%emt 0:00:25]} 48. Rxd6 {[%emt 0:00:05]} Rxd6 {[%emt 0:00:18]} 49. Re6 {[%emt 0:00:09]} Rxe6 {[%emt 0:01:07]} 50. Nxe6+ {[%emt 0:00:07]} Kf7 {[%emt 0:00:04]} 51. Nxg7 {[%emt 0:00:07]} Kxg7 {[%emt 0:00:05]} 52. f3 {[%emt 0:08:27]} Kf6 {[%emt 0:01:14]} 53. Kf2 {[%emt 0:00:21]} Kf5 {[%emt 0:01:58]} 54. Ke3 {[%emt 0:00:24]} Ke5 {[%emt 0:02:40]} 55. Kd3 {[%emt 0:00:00]} Kd5 {[%emt 0:00:00]} 56. h4 {[%emt 0:00:00]} Ke5 {[%emt 0:00:00]} 57. Ke3 {[%emt 0:00:00]} Kf5 {[%emt 0:00:00]} 58. Kd4 {[%emt 0:00:00]} Kf6 {[%emt 0:00:00]} 59. Kd5 {[%emt 0:00:00]} Kf5 {[%emt 0:00:00]} 60. Kd6 {[%emt 0:00:00]} Kf6 {[%emt 0:00:00]} 61. g4 {[%emt 0:00:00]} hxg4 {[%emt 0:00:00]} 62. fxg4 {[%emt 0:00:00]} Kf7 {[%emt 0:00:00]} 63. g5 {[%emt 0:00:00]} 1-0

[Event "SVK Extraliga 2019-20"]
[Site "Slovakia"]
[Date "2020.01.18"]
[Round "5.2"]
[White "Smolen, Jan"]
[Black "Michalik, Peter"]
[Result "1/2-1/2"]
[ECO "C47"]
[WhiteElo "2422"]
[BlackElo "2595"]
[Annotator "RC"]
[PlyCount "55"]
[EventDate "2019.10.19"]
[EventType "team-tourn"]
[EventCountry "SVK"]
[SourceTitle "playchess.com"]
[Source "ChessBase"]
[SourceQuality "1"]
[WhiteTeam "Dunajov"]
[BlackTeam "Modra"]
[WhiteTeamCountry "SVK"]
[BlackTeamCountry "CZE"]
[TimeControl "40/5400+30:1800+30"]

1. e4 {[%emt 0:00:00]} e5 {[%emt 0:00:00]} 2. Nf3 {[%emt 0:00:00]} Nc6 {[%emt 0:00:00]} 3. Nc3 {[%emt 0:00:00]} Nf6 {[%emt 0:00:00]} 4. d4 {[%emt 0:00:00]} exd4 {[%emt 0:00:00]} 5. Nxd4 {[%emt 0:00:00]} Bb4 {[%emt 0:00:04]} 6. Nxc6 {[%emt 0:00:00]} bxc6 {[%emt 0:00:06]} 7. Bd3 {[%emt 0:00:00]} d5 {[%emt 0:00:12]} 8. exd5 {[%emt 0:00:00]} O-O {[%emt 0:00:12]} 9. O-O {[%emt 0:00:00]} Bg4 {[%emt 0:00:07]} 10. Be2 {[%emt 0:03:45]} Bxe2 {[%emt 0:00:19]} 11. Qxe2 {[%emt 0:00:47]} cxd5 {[%emt 0:02:17]} 12. Qf3 {[%emt 0:01:03]} Qd7 {[%emt 0:05:40]} 13. Bf4 {[%emt 0:02:58]} c6 {[%emt 0:01:21]} 14. Ne2 {[%emt 0:02:34]} Rfe8 {[%emt 0:07:46]} 15. Rfd1 {[%emt 0:02:28]} Bc5 {[%emt 0:02:34]} 16. h3 {[%emt 0:12:31]} Qb7 {[%emt 0:03:59]} 17. b3 {[%emt 0:03:00]} Qb6 {[%emt 0:04:04]} 18. Nc3 {[%emt 0:13:12]} Ne4 {[%emt 0:01:02]} 19. Nxe4 {[%emt 0:00:29]} Rxe4 {[%emt 0:00:25]} 20. c4 {[%emt 0:03:29]} Bxf2+ {[%emt 0:00:58]} 21. Qxf2 {[%emt 0:00:05]} Qxf2+ {[%emt 0:00:36]} 22. Kxf2 {[%emt 0:00:08]} Rxf4+ {[%emt 0:00:02]} 23. Kg3 {[%emt 0:01:56]} Rf5 {[%emt 0:00:12]} 24. cxd5 {[%emt 0:00:08]} cxd5 {[%emt 0:01:42]} 25. Rac1 {[%emt 0:01:24]} h6 {[%emt 0:28:45]} 26. Rc7 {[%emt 0:01:22]} Re8 {[%emt 0:00:18]} 27. Rd2 {[%emt 0:00:33]} a6 {[%emt 0:15:07]} 28. Rd7 {[%emt 0:06:25]} 1/2-1/2

[Event "SVK Extraliga 2019-20"]
[Site "Slovakia"]
[Date "2020.01.18"]
[Round "5.3"]
[White "Ftacnik, Lubomir"]
[Black "Horvath, Csaba"]
[Result "1/2-1/2"]
[ECO "A05"]
[WhiteElo "2516"]
[BlackElo "2514"]
[Annotator "ChessBase"]
[PlyCount "48"]
[EventDate "2019.10.19"]
[EventType "team-tourn"]
[EventCountry "SVK"]
[SourceTitle "playchess.com"]
[Source "ChessBase"]
[SourceQuality "1"]
[WhiteTeam "Slovan"]
[BlackTeam "Podhajska"]
[TimeControl "40/5400+30:1800+30"]

1. Nf3 {[%emt 0:00:00]} Nf6 {[%emt 0:00:49]} 2. c4 {[%emt 0:00:00]} b6 {[%emt 0:00:19]} 3. g3 {[%emt 0:00:15]} Bb7 {[%emt 0:00:07]} 4. Bg2 {[%emt 0:00:08]} g6 {[%emt 0:01:04]} 5. b3 {[%emt 0:07:17]} c5 {[%emt 0:03:32]} 6. Bb2 {[%emt 0:00:53]} Bg7 {[%emt 0:00:05]} 7. O-O {[%emt 0:00:09]} O-O {[%emt 0:00:10]} 8. Nc3 {[%emt 0:02:26]} d5 {[%emt 0:02:25]} 9. Nxd5 {[%emt 0:01:02]} Nxd5 {[%emt 0:00:08]} 10. Bxg7 {[%emt 0:00:09]} Kxg7 {[%emt 0:00:08]} 11. cxd5 {[%emt 0:00:10]} Qxd5 {[%emt 0:00:13]} 12. d4 {[%emt 0:01:39]} Na6 {[%emt 0:03:00]} 13. Nh4 {[%emt 0:12:59]} Qd7 {[%emt 0:00:25]} 14. dxc5 {[%emt 0:00:04]} Qxd1 {[%emt 0:00:46]} 15. Rfxd1 {[%emt 0:00:31]} Bxg2 {[%emt 0:00:23]} 16. Kxg2 {[%emt 0:03:01]} Nxc5 {[%emt 0:00:28]} 17. b4 {[%emt 0:00:47]} Na6 {[%emt 0:10:55]} 18. a3 {[%emt 0:01:47]} Rfd8 {[%emt 0:05:49]} 19. Nf3 {[%emt 0:01:25]} Rac8 {[%emt 0:07:05]} 20. Ne5 {[%emt 0:23:24]} Rxd1 {[%emt 0:22:48]} 21. Rxd1 {[%emt 0:00:10]} f6 {[%emt 0:01:04]} 22. Nf3 {[%emt 0:06:30]} Kf7 {[%emt 0:00:39]} 23. Rd3 {[%emt 0:09:54]} Nb8 {[%emt 0:04:58]} 24. Nd4 {[%emt 0:05:26]} a6 {[%emt 0:04:12]} 1/2-1/2

[Event "SVK Extraliga 2019-20"]
[Site "Slovakia"]
[Date "2020.01.18"]
[Round "5.3"]
[White "Ponizil, Cyril"]
[Black "Bernasek, Jan"]
[Result "1/2-1/2"]
[ECO "B06"]
[WhiteElo "2502"]
[BlackElo "2495"]
[Annotator "ChessBase"]
[PlyCount "81"]
[EventDate "2019.10.19"]
[EventType "team-tourn"]
[EventCountry "SVK"]
[SourceTitle "playchess.com"]
[Source "ChessBase"]
[SourceQuality "1"]
[WhiteTeam "Dubnica"]
[BlackTeam "Zilina"]
[TimeControl "40/5400+30:1800+30"]

1. e4 {[%emt 0:00:00]} g6 {[%emt 0:00:00]} 2. d4 {[%emt 0:00:00]} Bg7 {[%emt 0:00:00]} 3. Nf3 {[%emt 0:00:39]} d6 {[%emt 0:00:36]} 4. Bc4 {[%emt 0:00:11]} e6 {[%emt 0:02:39]} 5. O-O {[%emt 0:00:19]} Ne7 {[%emt 0:00:36]} 6. Re1 {[%emt 0:00:11]} O-O {[%emt 0:01:10]} 7. h3 {[%emt 0:00:59]} b6 {[%emt 0:03:30]} 8. a4 {[%emt 0:01:28]} Bb7 {[%emt 0:05:37]} 9. Nc3 {[%emt 0:00:41]} a6 {[%emt 0:03:06]} 10. Bf4 {[%emt 0:02:36]} Nd7 {[%emt 0:05:32]} 11. Qc1 {[%emt 0:02:13]} d5 {[%emt 0:07:45]} 12. exd5 {[%emt 0:00:29]} exd5 {[%emt 0:01:55]} 13. Bd3 {[%emt 0:00:24]} c5 {[%emt 0:10:48]} 14. Bh6 {[%emt 0:08:06]} Re8 {[%emt 0:11:57]} 15. Bxg7 {[%emt 0:01:53]} Kxg7 {[%emt 0:00:09]} 16. Qf4 {[%emt 0:06:16]} Qb8 {[%emt 0:04:00]} 17. Qd2 {[%emt 0:03:15]} Nf6 {[%emt 0:02:38]} 18. Bf1 {[%emt 0:11:53]} Nf5 {[%emt 0:05:59]} 19. Rxe8 {[%emt 0:01:11]} Qxe8 {[%emt 0:00:14]} 20. Re1 {[%emt 0:00:56]} Qf8 {[%emt 0:04:55]} 21. Qf4 {[%emt 0:04:27]} Rc8 {[%emt 0:08:16]} 22. g4 {[%emt 0:08:39]} Qd6 {[%emt 0:02:45]} 23. Ne2 {[%emt 0:05:11]} Qxf4 {[%emt 0:02:40]} 24. Nxf4 {[%emt 0:00:02]} Nd6 {[%emt 0:00:38]} 25. Re3 {[%emt 0:09:51]} Rc7 {[%emt 0:08:27]} 26. Rb3 {[%emt 0:05:34]} Nc4 {[%emt 0:00:39]} 27. dxc5 {[%emt 0:08:49]} bxc5 {[%emt 0:00:16]} 28. Bxc4 {[%emt 0:11:23]} dxc4 {[%emt 0:00:03]} 29. Re3 {[%emt 0:00:03]} Rd7 {[%emt 0:00:38]} 30. Ne1 {[%emt 0:03:41]} Rd2 {[%emt 0:02:55]} 31. Re7 {[%emt 0:00:25]} Bd5 {[%emt 0:01:43]} 32. Rc7 {[%emt 0:02:08]} Rd1 {[%emt 0:03:11]} 33. Kf1 {[%emt 0:00:05]} c3 {[%emt 0:00:13]} 34. bxc3 {[%emt 0:01:27]} Bc4+ {[%emt 0:00:08]} 35. Nfd3 {[%emt 0:00:03]} Ne4 {[%emt 0:00:07]} 36. f3 {[%emt 0:01:03]} Nxc3 {[%emt 0:01:21]} 37. Rxc5 {[%emt 0:00:05]} Bxd3+ {[%emt 0:00:22]} 38. cxd3 {[%emt 0:00:04]} Nxa4 {[%emt 0:00:09]} 39. Ra5 {[%emt 0:01:11]} Nc3 {[%emt 0:00:45]} 40. Rxa6 {[%emt 0:00:59]} Rd2 {[%emt 0:00:50]} 41. Ra3 {[%emt 0:02:40]} 1/2-1/2

[Event "SVK Extraliga 2019-20"]
[Site "Slovakia"]
[Date "2020.01.18"]
[Round "5.3"]
[White "Vykouk, Jan"]
[Black "Pniaczek, Marek"]
[Result "1-0"]
[ECO "C78"]
[WhiteElo "2434"]
[BlackElo "2145"]
[Annotator "ChessBase"]
[PlyCount "83"]
[EventDate "2019.10.19"]
[EventType "team-tourn"]
[EventCountry "SVK"]
[SourceTitle "playchess.com"]
[Source "ChessBase"]
[SourceQuality "1"]
[WhiteTeam "Modra"]
[BlackTeam "Dunajov"]
[WhiteTeamCountry "CZE"]
[BlackTeamCountry "POL"]
[TimeControl "40/5400+30:1800+30"]

1. e4 {[%emt 0:00:00]} e5 {[%emt 0:00:00]} 2. Nf3 {[%emt 0:00:00]} Nc6 {[%emt 0:00:00]} 3. Bb5 {[%emt 0:00:16]} a6 {[%emt 0:00:00]} 4. Ba4 {[%emt 0:00:04]} Nf6 {[%emt 0:00:00]} 5. d3 {[%emt 0:00:27]} b5 {[%emt 0:00:22]} 6. Bb3 {[%emt 0:00:06]} Bc5 {[%emt 0:00:45]} 7. O-O {[%emt 0:00:28]} d6 {[%emt 0:01:27]} 8. c3 {[%emt 0:01:35]} O-O {[%emt 0:01:47]} 9. a4 {[%emt 0:00:24]} Rb8 {[%emt 0:04:28]} 10. axb5 {[%emt 0:01:53]} axb5 {[%emt 0:00:12]} 11. Nbd2 {[%emt 0:00:55]} Bb6 {[%emt 0:03:43]} 12. Re1 {[%emt 0:00:22]} Ne7 {[%emt 0:00:52]} 13. Nf1 {[%emt 0:00:35]} Ng6 {[%emt 0:00:26]} 14. Ng3 {[%emt 0:03:05]} Re8 {[%emt 0:07:43]} 15. h3 {[%emt 0:01:27]} h6 {[%emt 0:01:16]} 16. d4 {[%emt 0:02:28]} Bb7 {[%emt 0:09:49]} 17. Bc2 {[%emt 0:10:58]} Nf4 {[%emt 0:13:07]} 18. Be3 {[%emt 0:02:21]} Ng6 {[%emt 0:07:44]} 19. dxe5 {[%emt 0:04:32]} dxe5 {[%emt 0:01:40]} 20. Bxb6 {[%emt 0:00:06]} cxb6 {[%emt 0:00:21]} 21. Nf5 {[%emt 0:00:08]} Qc7 {[%emt 0:01:59]} 22. Qd6 {[%emt 0:00:28]} Qc6 {[%emt 0:07:34]} 23. Rad1 {[%emt 0:03:39]} Rbd8 {[%emt 0:04:37]} 24. Qxd8 {[%emt 0:09:10]} Rxd8 {[%emt 0:00:04]} 25. Rxd8+ {[%emt 0:00:05]} Kh7 {[%emt 0:00:02]} 26. Rdd1 {[%emt 0:00:26]} Bc8 {[%emt 0:06:13]} 27. Bb3 {[%emt 0:13:49]} Bxf5 {[%emt 0:05:26]} 28. exf5 {[%emt 0:00:08]} Nf4 {[%emt 0:00:10]} 29. Bxf7 {[%emt 0:01:12]} Qb7 {[%emt 0:04:09]} 30. Bg6+ {[%emt 0:00:55]} Nxg6 {[%emt 0:00:05]} 31. fxg6+ {[%emt 0:00:04]} Kxg6 {[%emt 0:00:03]} 32. Rxe5 {[%emt 0:00:26]} b4 {[%emt 0:02:58]} 33. cxb4 {[%emt 0:00:08]} Qc7 {[%emt 0:01:15]} 34. Rde1 {[%emt 0:00:59]} Qc4 {[%emt 0:00:27]} 35. b5 {[%emt 0:02:22]} Qb3 {[%emt 0:00:25]} 36. Nh4+ {[%emt 0:03:29]} Kh7 {[%emt 0:00:06]} 37. Nf5 {[%emt 0:00:31]} Qxb2 {[%emt 0:00:51]} 38. Re7 {[%emt 0:01:33]} Nh5 {[%emt 0:00:07]} 39. g4 {[%emt 0:02:45]} Qxb5 {[%emt 0:00:56]} 40. R7e5 {[%emt 0:00:16]} Qd3 {[%emt 0:01:34]} 41. gxh5 {[%emt 0:30:06]} Qxh3 {[%emt 0:30:04]} 42. Ng3 {[%emt 0:00:13]} 1-0